fUST/lending_fUST_20251115
["ID","MTS","AMOUNT","RATE_DAILY","PERIOD"]
[393998478,1763171447866,-391.16,0.00045479,15]
[393998479,1763171447879,-153.42,0.00045573,120]
[393998480,1763171447892,-153.42,0.00045673,120]
[393998481,1763171447904,-153.42,0.00045773,120]
[393998482,1763171447917,-153.42,0.00045873,120]
[393998483,1763171447929,-153.42,0.00045973,120]
[393998484,1763171447941,-353.994393,0.00046048,120]
[393998485,1763171447954,-154.15225788,0.00046073,120]
[393998486,1763171447967,-446.620484,0.00046143,2]
[393998487,1763171447980,-353.994393,0.00046188,2]
[393998488,1763171447992,-285.08,0.00046466,30]
[393998489,1763171448001,-152.463091,0.000465,120]
[393998490,1763171448010,-269.244321,0.000465,30]
[393998491,1763171448019,-151.0,0.000465,120]
[393998492,1763171448028,-151.0,0.000465,120]
[393998493,1763171448037,-999.0,0.00046575,120]
[393998494,1763171448047,-727.770705,0.00046575,120]
[393998495,1763171448059,-727.770705,0.00046575,120]
[393998496,1763171448067,-727.770705,0.00046575,120]
[393998497,1763171448076,-727.770705,0.00046575,120]
[393998498,1763171448318,-727.770705,0.00046575,120]
[393998499,1763171448337,-727.770705,0.00046575,120]
[393998500,1763171448348,-727.770705,0.00046575,120]
[393998501,1763171448357,-727.770705,0.00046575,120]
[393998502,1763171448367,-2432.60771564,0.00046639,2]
[393998503,1763171448376,-4426.0,0.00046685,120]
[393998504,1763171448385,-164.2237678,0.00046747,30]
[393998505,1763171448395,-395.2109804,0.00046789,30]
[393998506,1763171448404,-391.16,0.00046849,16]
[393998507,1763171448414,-629.0,0.00047,2]
[393998508,1763171448423,-2149.0,0.00047,2]
[393998509,1763171448432,-988.0,0.00047,2]
[393998510,1763171448441,-413.0,0.00047,2]
[393998511,1763171448450,-157.29296,0.00047797,120]
[393998512,1763171448459,-353.994393,0.00047797,120]
[393998513,1763171448468,-300.0,0.0004811,60]
[393998514,1763171448478,-172.5,0.00048219,120]
[393998515,1763171448487,-391.16,0.00048219,17]
[393998516,1763171448498,-313.85626185,0.00049,15]
[393998517,1763171448507,-159.0,0.00049,120]
[393998518,1763171448516,-983.08637377,0.00049315,120]
[393998519,1763171448525,-391.16,0.00049589,18]
[393998520,1763171448535,-629.0,0.0005,2]
[393998521,1763171448544,-2149.0,0.0005,2]
[393998522,1763171448553,-988.0,0.0005,2]
[393998523,1763171448562,-413.0,0.0005,2]
[393998524,1763171448571,-502.26141912,0.0005,2]
[393998525,1763171448580,-3078.87,0.0005,14]
[393998526,1763171448590,-33012.36,0.0005,120]
[393998527,1763171448601,-353.994393,0.00050618,7]
[393998528,1763171448610,-692.4088917,0.0005074,30]
[393998529,1763171448620,-593.4565077,0.0005074,30]
[393998530,1763171448630,-593.4565077,0.0005074,30]
[393998531,1763171448639,-593.4565077,0.0005074,30]
[393998532,1763171448648,-593.4565077,0.0005074,30]
[393998533,1763171448657,-593.4565077,0.0005074,30]
[393998534,1763171448666,-593.4565077,0.0005074,30]
[393998535,1763171448675,-593.4565077,0.0005074,30]
[393998536,1763171448684,-300.3678215,0.0005074,30]
[393998537,1763171448693,-300.3678215,0.0005074,30]
[393998538,1763171448702,-300.3678215,0.0005074,30]
[393998539,1763171448712,-600.6492687,0.00050932,30]
[393998540,1763171448721,-300.3678215,0.00050932,30]
[393998541,1763171448731,-182.40711304,0.00050958,120]
[393998542,1763171448740,-391.16,0.00050958,19]
[393998543,1763171448750,-547.05572263,0.00050986,120]
[393998544,1763171448759,-159.0,0.00051,120]
[393998545,1763171448768,-300.3678215,0.00051123,30]
[393998546,1763171448778,-300.3678215,0.00051123,30]
[393998547,1763171448787,-5000.0,0.000512,120]
[393998548,1763171448796,-500.0,0.0005132,60]
[393998549,1763171448805,-151.0,0.00051364,120]
[393998550,1763171448814,-151.0,0.00051364,120]
[393998551,1763171448823,-214.467643,0.00051364,120]
[393998552,1763171448833,-151.0,0.00051364,60]
[393998553,1763171448842,-151.0,0.00051364,120]
[393998554,1763171448854,-171.478129,0.00051364,120]
[393998555,1763171448863,-154.037957,0.00051364,95]
[393998556,1763171448872,-151.0,0.00051364,120]
[393998557,1763171448882,-151.0,0.00051364,120]
[393998558,1763171448891,-88888.0,0.00051462,120]
[393998559,1763171448900,-151.0,0.00051462,120]
[393998560,1763171448909,-151.0,0.00051462,120]
[393998561,1763171448919,-494.460272,0.00051462,2]
[393998562,1763171448928,-494.460272,0.00051462,2]
[393998563,1763171448938,-494.460272,0.00051462,2]
[393998564,1763171448947,-494.460272,0.00051462,2]
[393998565,1763171448957,-151.0,0.00051462,120]
[393998566,1763171448966,-204.091745,0.00051462,120]
[393998567,1763171448975,-151.0,0.00051462,120]
[393998568,1763171448984,-268.221491,0.00051462,120]
[393998569,1763171448994,-456.788697,0.00051462,120]
[393998570,1763171449003,-456.788697,0.00051462,120]
[393998571,1763171449012,-456.788697,0.00051462,120]
[393998572,1763171449021,-456.788697,0.00051462,120]
[393998573,1763171449031,-172.558549,0.00051462,120]
[393998574,1763171449041,-172.558549,0.00051462,120]
[393998575,1763171449051,-172.558549,0.00051462,120]
[393998576,1763171449062,-172.558549,0.00051462,120]
[393998577,1763171449071,-358.8527,0.00051462,120]
[393998578,1763171449080,-358.8527,0.00051462,120]
[393998579,1763171449091,-358.8527,0.00051462,120]
[393998580,1763171449100,-358.8527,0.00051462,120]
[393998581,1763171449110,-151.0,0.00051462,120]
[393998582,1763171449118,-154.068842,0.00051462,120]
[393998583,1763171449128,-197.292001,0.00051462,120]
[393998584,1763171449136,-197.292001,0.00051462,120]
[393998585,1763171449145,-197.292001,0.00051462,120]
[393998586,1763171449154,-197.292001,0.00051462,120]
[393998587,1763171449164,-356.203395,0.00051462,120]
[393998588,1763171449173,-356.203395,0.00051462,120]
[393998589,1763171449183,-356.203395,0.00051462,120]
[393998590,1763171449192,-356.203395,0.00051462,120]
[393998591,1763171449201,-151.0,0.00051462,120]
[393998592,1763171449210,-151.0,0.00051462,120]
[393998593,1763171449219,-151.0,0.00051462,120]
[393998594,1763171449228,-277.697323,0.00051462,120]
[393998595,1763171449237,-195.642105,0.00051462,7]
[393998596,1763171449246,-195.642105,0.00051462,7]
[393998597,1763171449255,-195.642105,0.00051462,7]
[393998598,1763171449264,-1253.127483,0.00051462,120]
[393998599,1763171449273,-195.642105,0.00051462,7]
[393998600,1763171449282,-1253.127483,0.00051462,120]
[393998601,1763171449291,-151.0,0.00051462,120]
[393998602,1763171449300,-1253.127483,0.00051462,120]
[393998603,1763171449309,-1253.127483,0.00051462,120]
[393998604,1763171449319,-163.320533,0.00051462,120]
[393998605,1763171449328,-151.0,0.00051462,30]
[393998606,1763171449337,-533.92382,0.00051462,120]
[393998607,1763171449348,-533.92382,0.00051462,120]
[393998608,1763171449357,-588.297637,0.00051462,120]
[393998609,1763171449366,-533.92382,0.00051462,120]
[393998610,1763171449375,-588.297637,0.00051462,120]
[393998611,1763171449384,-533.92382,0.00051462,120]
[393998612,1763171449393,-588.297637,0.00051462,120]
[393998613,1763171449403,-588.297637,0.00051462,120]
[393998614,1763171449413,-151.0,0.00051462,120]
[393998615,1763171449422,-151.0,0.00051462,2]
[393998616,1763171449431,-166.973417,0.00051462,120]
[393998617,1763171449440,-151.0,0.00051462,120]
[393998618,1763171449449,-151.0,0.00051462,120]
[393998619,1763171449458,-727.770705,0.00051462,120]
[393998620,1763171449467,-151.0,0.00051462,120]
[393998621,1763171449475,-727.770705,0.00051462,120]
[393998622,1763171449485,-727.770705,0.00051462,120]
[393998623,1763171449494,-727.770705,0.00051462,120]
[393998624,1763171449503,-2868.729599,0.00051462,120]
[393998625,1763171449512,-284.396293,0.00051462,120]
[393998626,1763171449521,-2868.729599,0.00051462,120]
[393998627,1763171449530,-161.503181,0.00051462,120]
[393998628,1763171449539,-2868.729599,0.00051462,120]
[393998629,1763171449548,-2868.729599,0.00051462,120]
[393998630,1763171449557,-151.0,0.00051462,120]
[393998631,1763171449566,-151.0,0.00051462,120]
[393998632,1763171449575,-151.0,0.00051462,120]
[393998633,1763171449584,-151.757969,0.00051462,120]
[393998634,1763171449593,-300.3678215,0.00051562,30]
[393998635,1763171449602,-300.3678215,0.00051562,30]
[393998636,1763171449611,-300.3678215,0.00051562,30]
[393998637,1763171449620,-300.3678215,0.00051562,30]
[393998638,1763171449629,-300.3678215,0.00051562,30]
[393998639,1763171449639,-300.3678215,0.00051562,30]
[393998640,1763171449648,-500.0,0.00051744,120]
[393998641,1763171449657,-1075906.42748162,0.000518,3]
[393998642,1763171449667,-151.0,0.000518,120]
[393998643,1763171449676,-151.0,0.000518,120]
[393998644,1763171449685,-151.0,0.000518,120]
[393998645,1763171449694,-151.0,0.000518,120]
[393998646,1763171449704,-151.0,0.000518,120]
[393998647,1763171449713,-151.0,0.000518,120]
[393998648,1763171449723,-151.0,0.000518,120]
[393998649,1763171449732,-151.652557,0.000518,120]
[393998650,1763171449741,-494.460272,0.000518,2]
[393998651,1763171449750,-494.460272,0.000518,2]
[393998652,1763171449760,-494.460272,0.000518,2]
[393998653,1763171449769,-494.460272,0.000518,2]
[393998654,1763171449779,-151.0,0.000518,120]
[393998655,1763171449788,-151.0,0.000518,120]
[393998656,1763171449797,-456.788697,0.000518,120]
[393998657,1763171449807,-456.788697,0.000518,120]
[393998658,1763171449816,-456.788697,0.000518,120]
[393998659,1763171449826,-456.788697,0.000518,120]
[393998660,1763171449835,-172.558549,0.000518,120]
[393998661,1763171449848,-172.558549,0.000518,120]
[393998662,1763171449857,-172.558549,0.000518,120]
[393998663,1763171449867,-172.558549,0.000518,120]
[393998664,1763171449876,-358.8527,0.000518,120]
[393998665,1763171449885,-358.8527,0.000518,120]
[393998666,1763171449895,-358.8527,0.000518,120]
[393998667,1763171449905,-358.8527,0.000518,120]
[393998668,1763171449914,-151.0,0.000518,120]
[393998669,1763171449923,-197.292001,0.000518,120]
[393998670,1763171449933,-197.292001,0.000518,120]
[393998671,1763171449942,-197.292001,0.000518,120]
[393998672,1763171449952,-197.292001,0.000518,120]
[393998673,1763171449961,-356.203395,0.000518,120]
[393998674,1763171449971,-356.203395,0.000518,120]
[393998675,1763171449980,-356.203395,0.000518,120]
[393998676,1763171449989,-356.203395,0.000518,120]
[393998677,1763171449998,-151.0,0.000518,120]
[393998678,1763171450007,-151.0,0.000518,120]
[393998679,1763171450017,-151.0,0.000518,120]
[393998680,1763171450026,-195.642105,0.000518,7]
[393998681,1763171450035,-195.642105,0.000518,7]
[393998682,1763171450045,-195.642105,0.000518,7]
[393998683,1763171450057,-1253.127483,0.000518,120]
[393998684,1763171450067,-195.642105,0.000518,7]
[393998685,1763171450076,-1253.127483,0.000518,120]
[393998686,1763171450086,-151.0,0.000518,120]
[393998687,1763171450095,-1253.127483,0.000518,120]
[393998688,1763171450106,-1253.127483,0.000518,120]
[393998689,1763171450115,-151.0,0.000518,30]
[393998690,1763171450125,-533.92382,0.000518,120]
[393998691,1763171450134,-533.92382,0.000518,120]
[393998692,1763171450144,-588.297637,0.000518,120]
[393998693,1763171450154,-533.92382,0.000518,120]
[393998694,1763171450163,-588.297637,0.000518,120]
[393998695,1763171450173,-533.92382,0.000518,120]
[393998696,1763171450183,-588.297637,0.000518,120]
[393998697,1763171450192,-588.297637,0.000518,120]
[393998698,1763171450202,-151.0,0.000518,120]
[393998699,1763171450212,-151.0,0.000518,2]
[393998700,1763171450222,-151.0,0.000518,120]
[393998701,1763171450231,-151.0,0.000518,120]
[393998702,1763171450239,-727.770705,0.000518,120]
[393998703,1763171450249,-151.0,0.000518,120]
[393998704,1763171450258,-727.770705,0.000518,120]
[393998705,1763171450267,-727.770705,0.000518,120]
[393998706,1763171450275,-727.770705,0.000518,120]
[393998707,1763171450285,-2868.729599,0.000518,120]
[393998708,1763171450294,-2868.729599,0.000518,120]
[393998709,1763171450303,-2868.729599,0.000518,120]
[393998710,1763171450312,-2868.729599,0.000518,120]
[393998711,1763171450321,-153.551358,0.000518,120]
[393998712,1763171450330,-151.0,0.000518,120]
[393998713,1763171450339,-400.0,0.00051945,120]
[393998714,1763171450348,-151.0,0.00052054,120]
[393998715,1763171450357,-151.0,0.00052054,120]
[393998716,1763171450366,-152.828512,0.00052054,120]
[393998717,1763171450375,-151.767366,0.00052054,120]
[393998718,1763171450385,-151.0,0.00052054,120]
[393998719,1763171450394,-152.71732,0.00052054,120]
[393998720,1763171450403,-156.906094,0.00052054,120]
[393998721,1763171450412,-151.0,0.00052054,120]
[393998722,1763171450421,-266.601798,0.00052054,120]
[393998723,1763171450430,-151.0,0.00052054,120]
[393998724,1763171450438,-151.0,0.00052054,120]
[393998725,1763171450447,-151.0,0.00052054,120]
[393998726,1763171450456,-152.548768,0.00052054,120]
[393998727,1763171450466,-151.0,0.00052054,120]
[393998728,1763171450475,-227.04697,0.00052054,120]
[393998729,1763171450484,-151.0,0.00052054,15]
[393998730,1763171450493,-151.0,0.00052054,15]
[393998731,1763171450502,-151.0,0.00052054,120]
[393998732,1763171450511,-151.0,0.00052054,120]
[393998733,1763171450520,-151.0,0.00052054,120]
[393998734,1763171450529,-151.0,0.00052054,120]
[393998735,1763171450538,-151.0,0.00052054,120]
[393998736,1763171450547,-151.0,0.00052054,120]
[393998737,1763171450556,-151.0,0.00052054,120]
[393998738,1763171450564,-151.0,0.00052054,120]
[393998739,1763171450573,-151.0,0.00052054,120]
[393998740,1763171450582,-151.0,0.00052054,120]
[393998741,1763171450591,-151.0,0.00052054,120]
[393998742,1763171450601,-151.0,0.00052054,120]
[393998743,1763171450609,-151.0,0.00052054,120]
[393998744,1763171450619,-151.0,0.00052054,120]
[393998745,1763171450627,-151.0,0.00052054,120]
[393998746,1763171450636,-1574.27,0.00052054,120]
[393998747,1763171450645,-501.77458192,0.00052054,120]
[393998748,1763171450655,-500.0,0.00052054,120]
[393998749,1763171450665,-500.0,0.00052054,120]
[393998750,1763171450675,-500.0,0.00052054,120]
[393998751,1763171450684,-500.0,0.00052054,120]
[393998752,1763171450694,-500.0,0.00052054,120]
[393998753,1763171450703,-500.0,0.00052054,120]
[393998754,1763171450712,-500.0,0.00052054,120]
[393998755,1763171450722,-500.0,0.00052054,2]
[393998756,1763171450731,-500.0,0.00052054,120]
[393998757,1763171450740,-501.228809,0.00052054,120]
[393998758,1763171450750,-524.39217667,0.00052054,120]
[393998759,1763171450760,-500.0,0.00052054,120]
[393998760,1763171450770,-500.0,0.00052054,120]
[393998761,1763171450779,-506.33944631,0.00052054,120]
[393998762,1763171450789,-500.0,0.00052054,120]
[393998763,1763171450798,-503.5907994,0.00052054,120]
[393998764,1763171450807,-500.0,0.00052054,120]
[393998765,1763171450817,-510.68100766,0.00052054,120]
[393998766,1763171450827,-500.0,0.00052054,120]
[393998767,1763171450836,-500.0,0.00052054,120]
[393998768,1763171450845,-500.0,0.00052054,120]
[393998769,1763171450855,-500.0,0.00052054,120]
[393998770,1763171450865,-500.0,0.00052054,120]
[393998771,1763171450875,-500.0,0.00052054,120]
[393998772,1763171450884,-500.0,0.00052054,120]
[393998773,1763171450893,-609.02,0.00052054,120]
[393998774,1763171450902,-500.0,0.00052054,120]
[393998775,1763171450911,-500.0,0.00052054,120]
[393998776,1763171450920,-500.0,0.00052054,120]
[393998777,1763171450930,-500.0,0.00052054,120]
[393998778,1763171450940,-500.0,0.00052054,120]
[393998779,1763171450950,-500.0,0.00052054,120]
[393998780,1763171450959,-500.0,0.00052054,120]
[393998781,1763171450968,-500.0,0.00052054,120]
[393998782,1763171450977,-500.0,0.00052054,120]
[393998783,1763171450987,-500.0,0.00052054,120]
[393998784,1763171450996,-500.0,0.00052054,120]
[393998785,1763171451006,-500.0,0.00052054,120]
[393998786,1763171451015,-500.0,0.00052054,120]
[393998787,1763171451024,-506.45864389,0.00052054,120]
[393998788,1763171451034,-500.0,0.00052054,120]
[393998789,1763171451045,-500.0,0.00052054,120]
[393998790,1763171451057,-500.0,0.00052054,120]
[393998791,1763171451066,-500.0,0.00052054,120]
[393998792,1763171451076,-500.0,0.00052054,120]
[393998793,1763171451086,-500.0,0.00052054,120]
[393998794,1763171451098,-629.45,0.00052054,120]
[393998795,1763171451107,-500.0,0.00052054,120]
[393998796,1763171451117,-500.0,0.00052054,120]
[393998797,1763171451126,-500.58707555,0.00052054,120]
[393998798,1763171451135,-500.0,0.00052054,120]
[393998799,1763171451145,-517.42,0.00052054,120]
[393998800,1763171451155,-500.0,0.00052054,120]
[393998801,1763171451165,-948.59,0.00052054,120]
[393998802,1763171451174,-500.0,0.00052054,120]
[393998803,1763171451184,-500.0,0.00052054,120]
[393998804,1763171451194,-500.0,0.00052054,120]
[393998805,1763171451203,-500.0,0.00052054,120]
[393998806,1763171451213,-500.0,0.00052054,120]
[393998807,1763171451222,-500.0,0.00052054,120]
[393998808,1763171451231,-500.0,0.00052054,120]
[393998809,1763171451241,-500.0,0.00052054,120]
[393998810,1763171451251,-511.24642548,0.00052054,120]
[393998811,1763171451260,-500.0,0.00052054,120]
[393998812,1763171451271,-500.0,0.00052054,120]
[393998813,1763171451280,-500.0,0.00052054,120]
[393998814,1763171451290,-500.0,0.00052054,120]
[393998815,1763171451299,-500.0,0.00052054,2]
[393998816,1763171451308,-500.0,0.00052054,120]
[393998817,1763171451318,-500.0,0.00052054,120]
[393998818,1763171451327,-500.0,0.00052054,120]
[393998819,1763171451337,-500.0,0.00052054,120]
[393998820,1763171451347,-501.37250952,0.00052054,120]
[393998821,1763171451358,-500.0,0.00052054,120]
[393998822,1763171451368,-500.0,0.00052054,120]
[393998823,1763171451377,-500.0,0.00052054,120]
[393998824,1763171451532,-525.42,0.00052054,120]
[393998825,1763171451541,-500.0,0.00052054,120]
[393998826,1763171451551,-500.0,0.00052054,120]
[393998827,1763171451560,-500.0,0.00052054,120]
[393998828,1763171451569,-500.0,0.00052054,120]
[393998829,1763171451578,-500.0,0.00052054,120]
[393998830,1763171451588,-500.0,0.00052054,120]
[393998831,1763171451597,-500.0,0.00052054,120]
[393998832,1763171451607,-500.0,0.00052054,120]
[393998833,1763171451616,-500.0,0.00052054,7]
[393998834,1763171451625,-501.49410869,0.00052054,120]
[393998835,1763171451635,-500.0,0.00052054,120]
[393998836,1763171451644,-500.0,0.00052054,120]
[393998837,1763171451653,-509.9377078,0.00052054,120]
[393998838,1763171451662,-501.38325079,0.00052054,120]
[393998839,1763171451671,-500.0,0.00052054,120]
[393998840,1763171451680,-500.0,0.00052054,120]
[393998841,1763171451690,-505.47029849,0.00052054,120]
[393998842,1763171451699,-500.0,0.00052054,120]
[393998843,1763171451709,-500.0,0.00052054,120]
[393998844,1763171451718,-500.0,0.00052054,120]
[393998845,1763171451728,-500.0,0.00052054,120]
[393998846,1763171451738,-500.0,0.00052054,120]
[393998847,1763171451747,-500.0,0.00052054,120]
[393998848,1763171451756,-500.0,0.00052054,120]
[393998849,1763171451765,-500.0,0.00052054,120]
[393998850,1763171451775,-500.0,0.00052054,120]
[393998851,1763171451784,-500.0,0.00052054,120]
[393998852,1763171451794,-500.0,0.00052054,120]
[393998853,1763171451803,-500.0,0.00052054,120]
[393998854,1763171451813,-500.0,0.00052054,120]
[393998855,1763171451822,-500.0,0.00052054,120]
[393998856,1763171451832,-500.0,0.00052054,120]
[393998857,1763171451841,-500.0,0.00052054,120]
[393998858,1763171451852,-500.0,0.00052054,120]
[393998859,1763171451862,-500.0,0.00052054,120]
[393998860,1763171451871,-500.0,0.00052054,120]
[393998861,1763171451881,-517.4683647,0.00052054,120]
[393998862,1763171451891,-500.0,0.00052054,120]
[393998863,1763171451901,-500.5971743,0.00052054,120]
[393998864,1763171451910,-500.0,0.00052054,120]
[393998865,1763171451919,-500.81390236,0.00052054,120]
[393998866,1763171451929,-500.0,0.00052054,120]
[393998867,1763171451938,-500.0,0.00052054,120]
[393998868,1763171451948,-500.0,0.00052054,120]
[393998869,1763171451957,-500.0,0.00052054,120]
[393998870,1763171451966,-500.0,0.00052054,120]
[393998871,1763171451975,-500.0,0.00052054,120]
[393998872,1763171451984,-500.0,0.00052054,120]
[393998873,1763171451994,-500.0,0.00052054,120]
[393998874,1763171452003,-546.25,0.00052054,120]
[393998875,1763171452012,-500.0,0.00052054,120]
[393998876,1763171452022,-532.58209202,0.00052054,120]
[393998877,1763171452031,-777.42,0.00052054,120]
[393998878,1763171452041,-500.0,0.00052054,120]
[393998879,1763171452051,-500.0,0.00052054,120]
[393998880,1763171452062,-500.0,0.00052054,120]
[393998881,1763171452071,-500.0,0.00052054,120]
[393998882,1763171452080,-500.0,0.00052054,120]
[393998883,1763171452090,-500.0,0.00052054,120]
[393998884,1763171452100,-500.0,0.00052054,120]
[393998885,1763171452111,-500.0,0.00052054,120]
[393998886,1763171452120,-501.46842796,0.00052054,120]
[393998887,1763171452131,-500.0,0.00052054,120]
[393998888,1763171452140,-502.71021068,0.00052054,120]
[393998889,1763171452150,-800.22,0.00052054,120]
[393998890,1763171452159,-500.0,0.00052054,120]
[393998891,1763171452168,-1000.0,0.00052054,2]
[393998892,1763171452177,-548.3,0.00052054,120]
[393998893,1763171452187,-649.89,0.00052054,120]
[393998894,1763171452196,-500.0,0.00052054,120]
[393998895,1763171452205,-500.0,0.00052054,120]
[393998896,1763171452214,-500.0,0.00052054,120]
[393998897,1763171452223,-500.0,0.00052054,120]
[393998898,1763171452233,-551.68,0.00052054,120]
[393998899,1763171452242,-500.0,0.00052054,120]
[393998900,1763171452251,-500.0,0.00052054,120]
[393998901,1763171452260,-500.0,0.00052054,120]
[393998902,1763171452269,-500.0,0.00052054,120]
[393998903,1763171452278,-500.0,0.00052054,120]
[393998904,1763171452287,-500.0,0.00052054,120]
[393998905,1763171452296,-500.0,0.00052054,120]
[393998906,1763171452305,-506.44616549,0.00052054,120]
[393998907,1763171452315,-500.0,0.00052054,120]
[393998908,1763171452324,-646.85,0.00052054,120]
[393998909,1763171452333,-500.0,0.00052054,120]
[393998910,1763171452342,-500.0,0.00052054,120]
[393998911,1763171452353,-500.0,0.00052054,30]
[393998912,1763171452363,-304.12522994,0.00052054,120]
[393998913,1763171452373,-580.02,0.00052054,120]
[393998914,1763171452382,-500.0,0.00052054,120]
[393998915,1763171452391,-812.44,0.00052054,2]
[393998916,1763171452401,-593.62168182,0.00052054,120]
[393998917,1763171452410,-500.0,0.00052054,120]
[393998918,1763171452419,-500.0,0.00052054,120]
[393998919,1763171452429,-474.03744693,0.00052054,120]
[393998920,1763171452438,-500.0,0.00052054,120]
[393998921,1763171452447,-500.0,0.00052054,120]
[393998922,1763171452456,-500.0,0.00052054,120]
[393998923,1763171452466,-500.0,0.00052054,120]
[393998924,1763171452475,-501.69897897,0.00052054,120]
[393998925,1763171452485,-875.77,0.00052054,120]
[393998926,1763171452494,-500.0,0.00052054,120]
[393998927,1763171452503,-500.0,0.00052054,120]
[393998928,1763171452513,-1011.89,0.00052054,120]
[393998929,1763171452522,-500.0,0.00052054,120]
[393998930,1763171452531,-518.22541682,0.00052054,120]
[393998931,1763171452540,-500.8926009,0.00052054,120]
[393998932,1763171452550,-500.0,0.00052054,120]
[393998933,1763171452559,-500.3316859,0.00052054,120]
[393998934,1763171452568,-500.0,0.00052054,120]
[393998935,1763171452577,-500.0,0.00052054,120]
[393998936,1763171452587,-500.0,0.00052054,120]
[393998937,1763171452597,-500.0,0.00052054,120]
[393998938,1763171452607,-500.0,0.00052054,120]
[393998939,1763171452617,-500.0,0.00052054,120]
[393998940,1763171452626,-500.0,0.00052054,120]
[393998941,1763171452635,-500.70458102,0.00052054,120]
[393998942,1763171452644,-500.0,0.00052054,120]
[393998943,1763171452654,-500.0,0.00052054,120]
[393998944,1763171452663,-500.0,0.00052054,120]
[393998945,1763171452672,-500.0,0.00052054,120]
[393998946,1763171452682,-503.56558241,0.00052054,120]
[393998947,1763171452691,-505.00260586,0.00052054,20]
[393998948,1763171452701,-500.0,0.00052054,120]
[393998949,1763171452710,-604.95,0.00052054,120]
[393998950,1763171452720,-500.0,0.00052054,120]
[393998951,1763171452730,-500.0,0.00052054,120]
[393998952,1763171452740,-500.0,0.00052054,120]
[393998953,1763171452749,-500.0,0.00052054,30]
[393998954,1763171452759,-500.0,0.00052054,120]
[393998955,1763171452768,-500.0,0.00052054,120]
[393998956,1763171452778,-759.32,0.00052054,120]
[393998957,1763171452788,-564.94,0.00052054,120]
[393998958,1763171452797,-500.0,0.00052054,120]
[393998959,1763171452807,-500.0,0.00052054,120]
[393998960,1763171452817,-500.0,0.00052054,120]
[393998961,1763171452826,-519.87821795,0.00052054,120]
[393998962,1763171452835,-503.71307889,0.00052054,120]
[393998963,1763171452845,-500.0,0.00052054,120]
[393998964,1763171452855,-500.0,0.00052054,120]
[393998965,1763171452864,-184.44070478,0.00052054,120]
[393998966,1763171452874,-500.90169348,0.00052054,120]
[393998967,1763171452884,-502.66418288,0.00052054,120]
[393998968,1763171452893,-500.0,0.00052054,120]
[393998969,1763171452903,-500.0,0.00052054,120]
[393998970,1763171452912,-511.78337528,0.00052054,120]
[393998971,1763171452921,-500.0,0.00052054,120]
[393998972,1763171452931,-1119.68,0.00052054,120]
[393998973,1763171452941,-554.45,0.00052054,120]
[393998974,1763171452950,-500.0,0.00052054,120]
[393998975,1763171452959,-221.6,0.00052054,120]
[393998976,1763171452969,-500.0,0.00052054,120]
[393998977,1763171452977,-500.0,0.00052054,120]